[Event "XIX Najdorf Memorial 2019"]
[Site "Warsaw"]
[Date "2019.07.10"]
[Round "5.13"]
[White "Sliwicki, Damian"]
[Black "Klekowski, Maciej"]
[Result "0-1"]
[ECO "B40"]
[WhiteElo "2232"]
[BlackElo "2482"]
[Annotator "ChessBase"]
[PlyCount "68"]
[EventDate "2019.07.06"]
[EventType "swiss"]
[EventCountry "POL"]
[SourceTitle "playchess.com"]
[Source "ChessBase"]
[SourceQuality "1"]
[TimeControl "40/5400+30:1800+30"]

1. e4 {[%emt 0:00:00]} c5 {[%emt 0:03:41]} 2. Nf3 {[%emt 0:00:00]} e6 {[%emt 0:00:09]} 3. c4 {[%emt 0:00:00]} Nc6 {[%emt 0:00:13]} 4. Nc3 {[%emt 0:00:00]} Nf6 {[%emt 0:01:40]} 5. Be2 {[%emt 0:00:00]} d5 {[%emt 0:07:55]} 6. exd5 {[%emt 0:02:08]} exd5 {[%emt 0:00:49]} 7. d4 {[%emt 0:00:05]} cxd4 {[%emt 0:03:35]} 8. Nxd4 {[%emt 0:03:39]} dxc4 {[%emt 0:00:16]} 9. Ndb5 {[%emt 0:01:01]} a6 {[%emt 0:02:33]} 10. Qxd8+ {[%emt 0:11:02]} Kxd8 {[%emt 0:00:18]} 11. Na3 {[%emt 0:04:01]} b5 {[%emt 0:00:10]} 12. Bg5 {[%emt 0:05:02]} Be6 {[%emt 0:03:23]} 13. Bf3 {[%emt 0:08:12]} Kc7 {[%emt 0:01:24]} 14. Bf4+ {[%emt 0:07:33]} Kb6 {[%emt 0:01:23]} 15. Nc2 {[%emt 0:05:48]} Rd8 {[%emt 0:04:14]} 16. O-O {[%emt 0:04:54]} Bc5 {[%emt 0:07:27]} 17. a4 {[%emt 0:07:06]} Nd5 {[%emt 0:01:49]} 18. a5+ {[%emt 0:08:29]} Kb7 {[%emt 0:03:22]} 19. Bxd5 {[%emt 0:04:14]} Bxd5 {[%emt 0:00:04]} 20. Rfd1 {[%emt 0:06:57]} Be6 {[%emt 0:00:57]} 21. Ne4 {[%emt 0:00:10]} Be7 {[%emt 0:00:19]} 22. Nd6+ {[%emt 0:02:18]} Bxd6 {[%emt 0:00:05]} 23. Rxd6 {[%emt 0:00:54]} Rxd6 {[%emt 0:00:06]} 24. Bxd6 {[%emt 0:00:03]} Rd8 {[%emt 0:00:07]} 25. Bf4 {[%emt 0:00:08]} Nxa5 {[%emt 0:00:16]} 26. h3 {[%emt 0:02:40]} Nb3 {[%emt 0:00:07]} 27. Re1 {[%emt 0:00:08]} a5 {[%emt 0:00:09]} 28. Re5 {[%emt 0:00:30]} Rd1+ {[%emt 0:01:01]} 29. Kh2 {[%emt 0:00:04]} Kc6 {[%emt 0:00:23]} 30. Rh5 {[%emt 0:02:56]} h6 {[%emt 0:00:04]} 31. Be5 {[%emt 0:00:10]} Rd5 {[%emt 0:00:37]} 32. Ne3 {[%emt 0:01:28]} Rc5 {[%emt 0:00:04]} 33. f4 {[%emt 0:00:04]} f6 {[%emt 0:00:05]} 34. f5 {[%emt 0:01:05]} Rxe5 {[%emt 0:00:07]} 0-1

[Event "XIX Najdorf Memorial 2019"]
[Site "Warsaw"]
[Date "2019.07.10"]
[Round "5.14"]
[White "Galperin, Platon"]
[Black "Dzida, Kamil"]
[Result "1-0"]
[ECO "A28"]
[WhiteElo "2445"]
[BlackElo "1987"]
[Annotator "NA RC"]
[PlyCount "83"]
[EventDate "2019.07.06"]
[EventType "swiss"]
[EventCountry "POL"]
[SourceTitle "playchess.com"]
[Source "ChessBase"]
[SourceQuality "1"]
[TimeControl "40/5400+30:1800+30"]

1. c4 {[%emt 0:00:00]} Nf6 {[%emt 0:00:00]} 2. Nc3 {[%emt 0:00:00]} e5 {[%emt 0:00:49]} 3. Nf3 {[%emt 0:00:39]} Nc6 {[%emt 0:00:34]} 4. e3 {[%emt 0:01:11]} Bb4 {[%emt 0:01:53]} 5. Qc2 {[%emt 0:00:03]} O-O {[%emt 0:00:50]} 6. Nd5 {[%emt 0:00:43]} Be7 {[%emt 0:00:30]} 7. a3 {[%emt 0:01:24]} d6 {[%emt 0:01:55]} 8. Be2 {[%emt 0:04:34]} Re8 {[%emt 0:05:14]} 9. Nxe7+ {[%emt 0:02:05]} Qxe7 {[%emt 0:01:50]} 10. d3 {[%emt 0:00:08]} a5 {[%emt 0:02:49]} 11. b3 {[%emt 0:00:15]} Nd8 {[%emt 0:06:34]} 12. Bb2 {[%emt 0:00:10]} c5 {[%emt 0:00:08]} 13. O-O {[%emt 0:00:11]} Nc6 {[%emt 0:01:32]} 14. Rfe1 {[%emt 0:00:52]} Bg4 {[%emt 0:04:34]} 15. h3 {[%emt 0:01:54]} Bh5 {[%emt 0:01:33]} 16. Qd2 {[%emt 0:01:26]} Rad8 {[%emt 0:13:44]} 17. Rac1 {[%emt 0:01:31]} d5 {[%emt 0:04:30]} 18. cxd5 {[%emt 0:00:07]} Rxd5 {[%emt 0:01:01]} 19. Qc2 {[%emt 0:00:49]} b6 {[%emt 0:00:06]} 20. Qc4 {[%emt 0:09:24]} Rd6 {[%emt 0:07:25]} 21. Qb5 {[%emt 0:06:12]} Nd7 {[%emt 0:05:19]} 22. g3 {[%emt 0:10:54]} Rd8 {[%emt 0:14:01]} 23. Kg2 {[%emt 0:04:10]} Qe8 {[%emt 0:06:57]} 24. g4 {[%emt 0:09:58]} Bg6 {[%emt 0:00:04]} 25. Nh4 {[%emt 0:00:02]} Qe7 {[%emt 0:05:15]} 26. Nxg6 {[%emt 0:00:11]} Rxg6 {[%emt 0:00:25]} 27. Bf3 {[%emt 0:00:13]} Na7 {[%emt 0:00:47]} 28. Qa6 {[%emt 0:03:48]} Nb8 {[%emt 0:00:46]} 29. Qc4 {[%emt 0:00:02]} Rgd6 {[%emt 0:00:05]} 30. d4 {[%emt 0:07:46]} e4 {[%emt 0:00:24]} 31. Be2 {[%emt 0:00:02]} Nd7 {[%emt 0:01:28]} 32. Qa4 {[%emt 0:02:45]} Qh4 {[%emt 0:01:46]} 33. b4 {[%emt 0:08:15]} Rf6 {[%emt 0:01:56]} 34. Rf1 {[%emt 0:00:03]} Rh6 {[%emt 0:01:08]} 35. Rh1 {[%emt 0:00:01]} Rf6 {[%emt 0:00:04]} 36. Rcf1 {[%emt 0:00:22]} c4 {[%emt 0:01:18]} 37. Qc2 {[%emt 0:08:53]} Re8 {[%emt 0:02:33]} 38. Qxc4 {[%emt 0:00:19]} h5 {[%emt 0:00:15]} 39. Qc7 {[%emt 0:00:58]} Rc8 {[%emt 0:04:52]} 40. Qxd7 {[%emt 0:00:00]} Kh7 {[%emt 0:00:00]} 41. Qd5 {[%emt 0:02:00]} Rg6 {[%emt 0:01:33]} 42. Qxe4 {[%emt 0:03:30]} 1-0

[Event "XIX Najdorf Memorial 2019"]
[Site "Warsaw"]
[Date "2019.07.10"]
[Round "5.14"]
[White "Kopylov, Daniel"]
[Black "Terletsky, Oleg"]
[Result "1/2-1/2"]
[ECO "C47"]
[WhiteElo "2209"]
[BlackElo "2408"]
[Annotator "RC"]
[PlyCount "155"]
[EventDate "2019.07.06"]
[EventType "swiss"]
[EventCountry "POL"]
[SourceTitle "playchess.com"]
[Source "ChessBase"]
[SourceQuality "1"]
[TimeControl "40/5400+30:1800+30"]

1. e4 {[%emt 0:00:00]} e5 {[%emt 0:00:00]} 2. Nf3 {[%emt 0:00:00]} Nc6 {[%emt 0:00:00]} 3. Nc3 {[%emt 0:00:21]} Nf6 {[%emt 0:00:00]} 4. d4 {[%emt 0:00:44]} exd4 {[%emt 0:00:00]} 5. Nxd4 {[%emt 0:00:08]} Bb4 {[%emt 0:00:01]} 6. Nxc6 {[%emt 0:00:27]} bxc6 {[%emt 0:00:05]} 7. Bd3 {[%emt 0:00:31]} O-O {[%emt 0:00:49]} 8. O-O {[%emt 0:00:32]} d5 {[%emt 0:00:08]} 9. exd5 {[%emt 0:00:21]} cxd5 {[%emt 0:00:04]} 10. Bg5 {[%emt 0:01:35]} c6 {[%emt 0:00:05]} 11. Qf3 {[%emt 0:01:35]} h6 {[%emt 0:00:07]} 12. Bxf6 {[%emt 0:00:57]} Qxf6 {[%emt 0:00:07]} 13. Qxf6 {[%emt 0:00:29]} gxf6 {[%emt 0:00:02]} 14. Ne2 {[%emt 0:03:30]} Bc5 {[%emt 0:00:06]} 15. Ng3 {[%emt 0:11:17]} Rb8 {[%emt 0:00:06]} 16. b3 {[%emt 0:04:25]} Re8 {[%emt 0:07:38]} 17. Rfe1 {[%emt 0:08:44]} Re5 {[%emt 0:00:13]} 18. c3 {[%emt 0:08:31]} Bd7 {[%emt 0:05:39]} 19. Kf1 {[%emt 0:12:03]} Rbe8 {[%emt 0:01:29]} 20. Bf5 {[%emt 0:07:02]} Be6 {[%emt 0:03:46]} 21. Bd3 {[%emt 0:09:51]} Bd6 {[%emt 0:14:47]} 22. Nf5 {[%emt 0:06:17]} Bxf5 {[%emt 0:09:44]} 23. Bxf5 {[%emt 0:00:11]} R8e7 {[%emt 0:00:51]} 24. Bd3 {[%emt 0:03:59]} Ba3 {[%emt 0:00:52]} 25. Rab1 {[%emt 0:03:02]} a5 {[%emt 0:01:45]} 26. Re2 {[%emt 0:00:48]} c5 {[%emt 0:06:41]} 27. Rbe1 {[%emt 0:06:28]} d4 {[%emt 0:00:07]} 28. cxd4 {[%emt 0:01:28]} cxd4 {[%emt 0:00:02]} 29. Re4 {[%emt 0:00:35]} Bb4 {[%emt 0:00:09]} 30. R1e2 {[%emt 0:02:05]} Rc7 {[%emt 0:01:02]} 31. g3 {[%emt 0:04:54]} Rc1+ {[%emt 0:00:38]} 32. Kg2 {[%emt 0:00:05]} Bc3 {[%emt 0:03:57]} 33. Rxe5 {[%emt 0:01:39]} fxe5 {[%emt 0:00:01]} 34. Rxe5 {[%emt 0:00:14]} Rd1 {[%emt 0:00:04]} 35. Be2 {[%emt 0:01:45]} Rd2 {[%emt 0:01:39]} 36. Bc4 {[%emt 0:00:30]} Rd1 {[%emt 0:03:09]} 37. Rd5 {[%emt 0:00:43]} Kf8 {[%emt 0:00:59]} 38. h4 {[%emt 0:00:41]} Ke7 {[%emt 0:00:18]} 39. Kf3 {[%emt 0:00:17]} f6 {[%emt 0:01:40]} 40. a4 {[%emt 0:00:00]} Re1 {[%emt 0:00:00]} 41. Rh5 {[%emt 0:10:33]} Bd2 {[%emt 0:01:11]} 42. Be2 {[%emt 0:00:43]} Rb1 {[%emt 0:01:16]} 43. Rb5 {[%emt 0:00:16]} Bb4 {[%emt 0:00:09]} 44. Bc4 {[%emt 0:00:43]} Rb2 {[%emt 0:07:34]} 45. Rb7+ {[%emt 0:01:21]} Ke8 {[%emt 0:00:47]} 46. Rb6 {[%emt 0:00:43]} d3 {[%emt 0:00:59]} 47. Bxd3 {[%emt 0:02:21]} Rxf2+ {[%emt 0:00:48]} 48. Ke4 {[%emt 0:01:39]} Rg2 {[%emt 0:00:18]} 49. Rxf6 {[%emt 0:01:07]} Rxg3 {[%emt 0:01:01]} 50. Rxh6 {[%emt 0:00:21]} Kf7 {[%emt 0:12:59]} 51. Rh7+ {[%emt 0:02:37]} Kf6 {[%emt 0:05:39]} 52. h5 {[%emt 0:00:43]} Rh3 {[%emt 0:00:45]} 53. Bc4 {[%emt 0:01:37]} Kg5 {[%emt 0:01:34]} 54. Bf7 {[%emt 0:02:54]} Rc3 {[%emt 0:00:19]} 55. Be6 {[%emt 0:01:41]} Rc1 {[%emt 0:02:48]} 56. Bc4 {[%emt 0:02:06]} Re1+ {[%emt 0:00:46]} 57. Kd5 {[%emt 0:02:45]} Re7 {[%emt 0:02:37]} 58. Rh8 {[%emt 0:01:22]} Bc3 {[%emt 0:00:07]} 59. Rc8 {[%emt 0:00:04]} Bb4 {[%emt 0:00:31]} 60. Rb8 {[%emt 0:00:30]} Be1 {[%emt 0:01:14]} 61. Rb5 {[%emt 0:00:25]} Kh6 {[%emt 0:04:50]} 62. Kc6 {[%emt 0:00:52]} Rg7 {[%emt 0:00:51]} 63. Bd3 {[%emt 0:01:06]} Rg5 {[%emt 0:01:17]} 64. Bg6 {[%emt 0:00:15]} Rg3 {[%emt 0:00:47]} 65. Kd5 {[%emt 0:01:15]} Re3 {[%emt 0:02:38]} 66. Kd4 {[%emt 0:00:30]} Bf2 {[%emt 0:00:34]} 67. Rxa5 {[%emt 0:02:54]} Rxb3+ {[%emt 0:02:42]} 68. Ke4 {[%emt 0:00:11]} Rb7 {[%emt 0:00:59]} 69. Rf5 {[%emt 0:01:38]} Bh4 {[%emt 0:02:07]} 70. Rf8 {[%emt 0:00:15]} Rb4+ {[%emt 0:01:38]} 71. Kf5 {[%emt 0:00:22]} Rxa4 {[%emt 0:01:12]} 72. Rf7 {[%emt 0:00:54]} Ra5+ {[%emt 0:00:04]} 73. Kf4 {[%emt 0:00:06]} Bg5+ {[%emt 0:00:41]} 74. Kg4 {[%emt 0:00:31]} Ra4+ {[%emt 0:00:15]} 75. Kg3 {[%emt 0:00:10]} Ra3+ {[%emt 0:00:08]} 76. Kf2 {[%emt 0:00:05]} Be3+ {[%emt 0:01:03]} 77. Ke2 {[%emt 0:00:04]} Bd4 {[%emt 0:00:19]} 78. Rh7+ {[%emt 0:00:22]} 1/2-1/2

[Event "XIX Najdorf Memorial 2019"]
[Site "Warsaw"]
[Date "2019.07.10"]
[Round "5.15"]
[White "Krishna Teja, N."]
[Black "Malovanyi, Yulian"]
[Result "1/2-1/2"]
[ECO "D07"]
[WhiteElo "2368"]
[BlackElo "2204"]
[Annotator "NA RC"]
[PlyCount "108"]
[EventDate "2019.07.06"]
[EventType "swiss"]
[EventCountry "POL"]
[SourceTitle "playchess.com"]
[Source "ChessBase"]
[SourceQuality "1"]
[TimeControl "40/5400+30:1800+30"]

1. d4 d5 2. c4 Nc6 3. Nf3 Bg4 4. cxd5 Bxf3 5. gxf3 Qxd5 6. e3 e5 7. Nc3 Bb4 8. Bd2 Bxc3 9. bxc3 Nf6 10. Rb1 exd4 11. cxd4 O-O 12. Bg2 Rfe8 13. O-O Rad8 14. Qb3 Qg5 15. f4 Qg6 16. Rfc1 Ne4 17. Qc2 Rxd4 18. Be1 Rd6 19. Rxb7 Rde6 20. Rxc7 Ne7 21. Qa4 Nf5 22. Rc8 Ned6 23. Rxe8+ Rxe8 24. Qc6 h5 25. Rd1 Re6 26. Bb4 Kh7 27. Bxd6 Nh4 28. f5 Nxf5 29. Qf3 Rxd6 30. Rxd6 Nxd6 31. h3 Nf5 32. Qf4 Qe6 33. Be4 g6 34. Bxf5 gxf5 35. a4 Kg6 36. h4 f6 37. Qg3+ Kh6 38. Qc7 Qe4 39. Qf4+ Kg6 40. Kf1 Qd3+ 41. Ke1 Qc3+ 42. Ke2 Qc2+ 43. Kf3 Qd1+ 44. Kg2 Qd5+ 45. Kg3 Qd1 46. Qf3 Qxa4 47. Qa8 Qg4+ 48. Kh2 Qxh4+ 49. Kg1 Qg4+ 50. Kh2 Qc4 51. Qxa7 f4 52. Qe7 f3 53. e4 Qf1 54. Qe8+ Kg7 1/2-1/2

[Event "XIX Najdorf Memorial 2019"]
[Site "Warsaw"]
[Date "2019.07.10"]
[Round "5.15"]
[White "Goslawski, Michal"]
[Black "Socko, Monika"]
[Result "1-0"]
[ECO "E62"]
[WhiteElo "2091"]
[BlackElo "2443"]
[Annotator "NA"]
[PlyCount "97"]
[EventDate "2019.07.06"]
[EventType "swiss"]
[EventCountry "POL"]
[SourceTitle "playchess.com"]
[Source "ChessBase"]
[SourceQuality "1"]
[TimeControl "40/5400+30:1800+30"]

1. Nf3 {[%emt 0:00:00]} Nf6 {[%emt 0:00:00]} 2. c4 {[%emt 0:00:00]} g6 {[%emt 0:00:00]} 3. g3 {[%emt 0:00:00]} Bg7 {[%emt 0:00:00]} 4. Bg2 {[%emt 0:00:00]} O-O {[%emt 0:00:06]} 5. O-O {[%emt 0:00:00]} d6 {[%emt 0:00:04]} 6. d4 {[%emt 0:00:00]} Nc6 {[%emt 0:00:07]} 7. Nc3 {[%emt 0:00:21]} Bg4 {[%emt 0:00:38]} 8. d5 {[%emt 0:00:39]} Na5 {[%emt 0:05:29]} 9. Nd2 {[%emt 0:00:10]} c5 {[%emt 0:00:04]} 10. Qc2 {[%emt 0:01:56]} a6 {[%emt 0:06:12]} 11. Re1 {[%emt 0:01:43]} Bd7 {[%emt 0:00:49]} 12. b3 {[%emt 0:00:20]} b5 {[%emt 0:01:16]} 13. Bb2 {[%emt 0:00:14]} Rb8 {[%emt 0:00:49]} 14. Rab1 {[%emt 0:00:05]} Qc7 {[%emt 0:06:33]} 15. Nd1 {[%emt 0:11:02]} bxc4 {[%emt 0:04:15]} 16. bxc4 {[%emt 0:00:12]} Rb4 {[%emt 0:02:58]} 17. Bc3 {[%emt 0:02:36]} Rxb1 {[%emt 0:01:40]} 18. Qxb1 {[%emt 0:00:12]} Ng4 {[%emt 0:02:47]} 19. Bxg7 {[%emt 0:02:45]} Kxg7 {[%emt 0:00:04]} 20. Qc2 {[%emt 0:01:54]} f6 {[%emt 0:03:41]} 21. Nb2 {[%emt 0:03:26]} Rb8 {[%emt 0:03:50]} 22. h3 {[%emt 0:03:50]} Ne5 {[%emt 0:01:18]} 23. f4 {[%emt 0:05:21]} Nf7 {[%emt 0:00:23]} 24. Nd3 {[%emt 0:01:10]} e5 {[%emt 0:09:07]} 25. dxe6 {[%emt 0:00:49]} Bxe6 {[%emt 0:00:03]} 26. Qc3 {[%emt 0:11:00]} Nc6 {[%emt 0:11:04]} 27. Ne4 {[%emt 0:01:27]} Qe7 {[%emt 0:02:53]} 28. g4 {[%emt 0:03:27]} d5 {[%emt 0:11:31]} 29. cxd5 {[%emt 0:00:56]} Bxd5 {[%emt 0:00:01]} 30. Ndxc5 {[%emt 0:06:18]} Bxe4 {[%emt 0:10:13]} 31. Nxe4 {[%emt 0:03:07]} Nb4 {[%emt 0:00:05]} 32. Rd1 {[%emt 0:08:12]} Rd8 {[%emt 0:00:58]} 33. Rxd8 {[%emt 0:01:08]} Nxd8 {[%emt 0:00:01]} 34. g5 {[%emt 0:02:53]} Nd5 {[%emt 0:00:02]} 35. gxf6+ {[%emt 0:02:00]} Nxf6 {[%emt 0:06:59]} 36. Qxf6+ {[%emt 0:00:41]} Qxf6 {[%emt 0:00:04]} 37. Nxf6 {[%emt 0:00:06]} Kxf6 {[%emt 0:00:03]} 38. Bd5 {[%emt 0:00:05]} g5 {[%emt 0:00:40]} 39. fxg5+ {[%emt 0:00:25]} Kxg5 {[%emt 0:00:04]} 40. Kf2 {[%emt 0:00:00]} Kf4 {[%emt 0:00:00]} 41. e4 {[%emt 0:07:32]} a5 {[%emt 0:00:37]} 42. a4 h6 {[%emt 0:00:30]} 43. Kg2 h5 {[%emt 0:00:30]} 44. Kf2 {[%emt 0:01:30]} h4 {[%emt 0:07:14]} 45. Kg2 {[%emt 0:00:34]} Ke3 {[%emt 0:01:40]} 46. e5 {[%emt 0:00:22]} Kd4 {[%emt 0:03:54]} 47. e6 {[%emt 0:00:18]} Nxe6 {[%emt 0:00:03]} 48. Bxe6 {[%emt 0:00:08]} Ke3 {[%emt 0:00:02]} 49. Bg4 {[%emt 0:00:17]} 1-0

[Event "XIX Najdorf Memorial 2019"]
[Site "Warsaw"]
[Date "2019.07.10"]
[Round "5.16"]
[White "Malek, Daniel"]
[Black "Sowul, Bartosz"]
[Result "1/2-1/2"]
[ECO "A58"]
[WhiteElo "2362"]
[BlackElo "2210"]
[Annotator "NA"]
[PlyCount "115"]
[EventDate "2019.07.06"]
[EventType "swiss"]
[EventCountry "POL"]
[SourceTitle "playchess.com"]
[Source "ChessBase"]
[SourceQuality "1"]
[TimeControl "40/5400+30:1800+30"]

1. d4 {[%emt 0:00:00]} Nf6 {[%emt 0:02:31]} 2. c4 {[%emt 0:00:00]} c5 {[%emt 0:00:08]} 3. d5 {[%emt 0:00:00]} b5 {[%emt 0:00:15]} 4. cxb5 {[%emt 0:00:00]} a6 {[%emt 0:00:11]} 5. bxa6 {[%emt 0:00:00]} g6 {[%emt 0:00:17]} 6. Nc3 {[%emt 0:00:05]} Bg7 {[%emt 0:00:08]} 7. e4 {[%emt 0:00:08]} O-O {[%emt 0:00:08]} 8. e5 {[%emt 0:00:48]} Ne8 {[%emt 0:00:37]} 9. h4 {[%emt 0:00:07]} d6 {[%emt 0:05:20]} 10. e6 {[%emt 0:04:07]} Nf6 {[%emt 0:00:09]} 11. exf7+ {[%emt 0:27:40]} Rxf7 {[%emt 0:00:07]} 12. Nf3 {[%emt 0:00:08]} Nxa6 {[%emt 0:00:35]} 13. Ng5 {[%emt 0:00:35]} Rf8 {[%emt 0:00:09]} 14. Bc4 {[%emt 0:07:42]} Nb4 {[%emt 0:03:20]} 15. Be3 {[%emt 0:06:14]} Ng4 {[%emt 0:24:09]} 16. a3 {[%emt 0:00:47]} Nxe3 {[%emt 0:38:03]} 17. fxe3 {[%emt 0:00:10]} Qb6 {[%emt 0:00:58]} 18. Rc1 {[%emt 0:12:40]} Be5 {[%emt 0:04:01]} 19. Nf3 {[%emt 0:01:05]} Bg3+ {[%emt 0:04:20]} 20. Ke2 {[%emt 0:00:59]} Ba6 {[%emt 0:01:26]} 21. Qb3 {[%emt 0:04:14]} Nxd5 {[%emt 0:05:54]} 22. Kd2 {[%emt 0:00:32]} Qxb3 {[%emt 0:00:58]} 23. Bxb3 {[%emt 0:00:02]} c4 {[%emt 0:00:15]} 24. Nxd5 {[%emt 0:01:01]} cxb3 {[%emt 0:00:43]} 25. Nc7 {[%emt 0:07:36]} Ra7 {[%emt 0:00:55]} 26. Nxa6 {[%emt 0:00:08]} Rxa6 {[%emt 0:00:07]} 27. Rc3 {[%emt 0:00:07]} Rb6 {[%emt 0:01:12]} 28. Rhc1 {[%emt 0:05:08]} Rbb8 {[%emt 0:02:27]} 29. Rc7 {[%emt 0:09:20]} e5 {[%emt 0:00:40]} 30. Re7 {[%emt 0:00:07]} Rbc8 {[%emt 0:04:08]} 31. Rc3 {[%emt 0:00:20]} d5 {[%emt 0:00:37]} 32. Nxe5 {[%emt 0:00:56]} Rf2+ {[%emt 0:00:27]} 33. Kd3 {[%emt 0:00:17]} Rb8 {[%emt 0:00:34]} 34. Rcc7 {[%emt 0:06:54]} Bxe5 {[%emt 0:00:26]} 35. Rxe5 {[%emt 0:00:05]} Rxb2 {[%emt 0:00:21]} 36. Ree7 {[%emt 0:00:58]} Ra2 {[%emt 0:00:31]} 37. Rg7+ {[%emt 0:00:14]} Kf8 {[%emt 0:00:43]} 38. Rxh7 {[%emt 0:00:06]} Kg8 {[%emt 0:00:14]} 39. Rcg7+ {[%emt 0:00:32]} Kf8 {[%emt 0:00:06]} 40. Ra7 {[%emt 0:00:00]} Kg8 {[%emt 0:00:00]} 41. Rhg7+ {[%emt 0:04:03]} Kf8 {[%emt 0:09:00]} 42. Rgf7+ {[%emt 0:00:13]} Ke8 {[%emt 0:00:54]} 43. Rh7 {[%emt 0:00:34]} Rf2 {[%emt 0:00:35]} 44. Rhb7 {[%emt 0:01:15]} Rd8 {[%emt 0:08:12]} 45. Rxb3 {[%emt 0:00:31]} Rxg2 {[%emt 0:00:08]} 46. Rbb7 {[%emt 0:01:20]} Kf8 {[%emt 0:01:39]} 47. Kd4 {[%emt 0:03:03]} Rg4+ {[%emt 0:01:40]} 48. Ke5 {[%emt 0:01:06]} Re4+ {[%emt 0:00:41]} 49. Kf6 {[%emt 0:00:16]} Rd6+ {[%emt 0:00:11]} 50. Kg5 {[%emt 0:00:08]} Rxe3 {[%emt 0:02:04]} 51. Rh7 {[%emt 0:03:48]} Re5+ {[%emt 0:02:55]} 52. Kf4 {[%emt 0:01:10]} Re4+ {[%emt 0:00:16]} 53. Kg5 {[%emt 0:03:02]} Re5+ {[%emt 0:00:06]} 54. Kf4 {[%emt 0:00:13]} Re4+ {[%emt 0:00:07]} 55. Kg3 {[%emt 0:02:36]} Kg8 {[%emt 0:00:17]} 56. Rag7+ {[%emt 0:00:50]} Kf8 {[%emt 0:00:21]} 57. Rf7+ {[%emt 0:00:21]} Kg8 {[%emt 0:00:15]} 58. Rfg7+ {[%emt 0:00:40]} 1/2-1/2

[Event "XIX Najdorf Memorial 2019"]
[Site "Warsaw"]
[Date "2019.07.10"]
[Round "5.20"]
[White "Hassan, Abdullah"]
[Black "Lisowski, Krzysztof"]
[Result "0-1"]
[ECO "A46"]
[WhiteElo "2311"]
[BlackElo "2187"]
[Annotator "NA"]
[PlyCount "88"]
[EventDate "2019.07.06"]
[EventType "swiss"]
[EventCountry "POL"]
[SourceTitle "playchess.com"]
[Source "ChessBase"]
[SourceQuality "1"]
[TimeControl "40/5400+30:1800+30"]

1. d4 Nf6 2. Nf3 e6 3. e3 b6 4. Bd3 Bb7 5. O-O d5 6. b3 Nbd7 7. Bb2 Be7 8. c4 O-O 9. Nc3 c5 10. Rc1 Rc8 11. cxd5 exd5 12. Qe2 Ne4 13. Rfd1 Re8 14. dxc5 Bxc5 15. Bxe4 dxe4 16. Nd4 Qf6 17. Na4 Bf8 18. Rxc8 Rxc8 19. Nb5 Qf5 20. Nxa7 Ra8 21. Qb5 Qxb5 22. Nxb5 Bc6 23. Nc7 Rc8 24. Nd5 Bxa4 25. bxa4 Rc2 26. Bd4 Rxa2 27. Ra1 Rxa1+ 28. Bxa1 Bc5 29. Kf1 f5 30. Ke2 Kf7 31. Kd1 g6 32. Kc2 Ke6 33. Nf4+ Kd6 34. Kb3 Ne5 35. Bxe5+ Kxe5 36. Kc4 g5 37. Nd5 Kd6 38. g4 f4 39. exf4 gxf4 40. Nf6 Ke5 41. g5 Bxf2 42. Ng4+ Kf5 43. Nxf2 e3 44. Nd3 f3 0-1

[Event "XIX Najdorf Memorial 2019"]
[Site "Warsaw"]
[Date "2019.07.10"]
[Round "5.21"]
[White "Punin, Andrii"]
[Black "Shkliar, Boris"]
[Result "1-0"]
[ECO "A04"]
[WhiteElo "2305"]
[BlackElo "2160"]
[Annotator "NA"]
[PlyCount "141"]
[EventDate "2019.07.06"]
[EventType "swiss"]
[EventCountry "POL"]
[SourceTitle "playchess.com"]
[Source "ChessBase"]
[SourceQuality "1"]
[TimeControl "40/5400+30:1800+30"]

1. Nf3 f5 2. d3 d5 3. g3 Nc6 4. d4 Nf6 5. Bg2 e6 6. c4 Bb4+ 7. Bd2 Bxd2+ 8. Nbxd2 O-O 9. O-O Bd7 10. cxd5 exd5 11. Qb3 Qe7 12. e3 Kh8 13. Qxb7 Rab8 14. Qa6 Rxb2 15. Nb3 Ne4 16. Rab1 Rxb1 17. Rxb1 Rb8 18. Rc1 Rb6 19. Qf1 Be8 20. Nfd2 Nb4 21. Nxe4 fxe4 22. Nc5 Nxa2 23. Ra1 Rb2 24. Rb1 Rc2 25. Bh3 h6 26. Bf5 Qf8 27. Qh3 Rc1+ 28. Rxc1 Nxc1 29. g4 Qe7 30. Qf1 Na2 31. Qb1 g6 32. Be6 Nc3 33. Qb8 Kg7 34. Qxa7 Bf7 35. Bxf7 Qxf7 36. Qxc7 Qxc7 37. Ne6+ Kf6 38. Nxc7 Kg5 39. h3 h5 40. gxh5 gxh5 41. Ne6+ Kh4 42. Nf4 Na2 43. Nxd5 Kxh3 44. Nf6 Nc3 45. Nxh5 Kg4 46. Nf6+ Kf3 47. Kf1 Nb5 48. Nd7 Kg4 49. Nc5 Nc3 50. Kg2 Kf5 51. f3 exf3+ 52. Kxf3 Nb5 53. e4+ Kf6 54. Ke3 Ke7 55. e5 Nc3 56. Kd3 Nd5 57. Na4 Ke6 58. Nc3 Nb6 59. Ke4 Nc4 60. d5+ Ke7 61. Ne2 Nd2+ 62. Kf4 Nb3 63. Kf5 Nd2 64. Nf4 Nc4 65. Ng6+ Kf7 66. d6 Ke8 67. Ke6 Nb6 68. Ne7 Kd8 69. Nd5 Nc4 70. Nf6 Na5 71. Kd5 1-0

[Event "XIX Najdorf Memorial 2019"]
[Site "Warsaw"]
[Date "2019.07.10"]
[Round "5.22"]
[White "Sanz Wawer, Daniel"]
[Black "Deszczynski, Adam"]
[Result "1/2-1/2"]
[ECO "C54"]
[WhiteElo "2154"]
[BlackElo "2304"]
[Annotator "NA"]
[PlyCount "43"]
[EventDate "2019.07.06"]
[EventType "swiss"]
[EventCountry "POL"]
[SourceTitle "playchess.com"]
[Source "ChessBase"]
[SourceQuality "1"]
[TimeControl "40/5400+30:1800+30"]

1. e4 e5 2. Nf3 Nc6 3. Bc4 Bc5 4. c3 Nf6 5. d3 a6 6. Bb3 Ba7 7. O-O d6 8. h3 O-O 9. Nbd2 h6 10. Re1 Be6 11. Nf1 Re8 12. Ng3 d5 13. Qe2 Qd7 14. Kh2 dxe4 15. Bxe6 Rxe6 16. dxe4 Rd8 17. Be3 Qd3 18. Qxd3 Rxd3 19. Bxa7 Nxa7 20. Rad1 Rxd1 21. Rxd1 Nc6 22. Kg1 1/2-1/2